[Event "German Bundesliga 2021-22"]
[Site "Germany"]
[Date "2022.04.10"]
[Round "4.4"]
[White "Ernst, Sipke"]
[Black "Bruedigam, Martin"]
[Result "1/2-1/2"]
[ECO "D37"]
[WhiteElo "2532"]
[BlackElo "2386"]
[Annotator "TA"]
[PlyCount "135"]
[EventDate "2022.03.05"]
[EventType "team-tourn"]
[EventCountry "GER"]
[SourceTitle "playchess.com"]
[Source "ChessBase"]
[SourceQuality "1"]
[TimeControl "40/5400+30:1800+30"]

{[%evp 10,135,4,4,14,10,17,18,23,14,20,15,18,10,15,14,10,9,23,12,30,34,34,28,36,0,0,0,0,-10,0,0,0,-13,-6,-6,-4,-9,0,0,0,0,0,0,0,0,0,9,53,0,0,0,0,0,0,0,0,-8,-8,-8,-5,-9,0,0,0,0,0,0,0,0,0,0,0,0,0,0,0,0,0,0,0,0,0,0,0,0,0,0,0,0,0,0,0,0,0,0,0,0,0,0,0,0,0,0,0,0,0,0,0,0,0,0,0,0,0,0,0,0,0,0,0,0,0,0,0,0,0,0]} 1. d4 {[%emt 0:00:00]} Nf6 {[%emt 0:00:00]} 2. c4 {[%emt 0:00:00]} e6 {[%emt 0:00:00]} 3. Nc3 {[%emt 0:00:00]} d5 {[%emt 0:00:00]} 4. Nf3 {[%emt 0:00:00]} Be7 {[%emt 0:00:00]} 5. g3 {[%emt 0:00:00]} O-O {[%emt 0:00:00]} 6. Bg2 {[%emt 0:00:00]} b6 {[%emt 0:00:00] E06: Closed Catalan: Early deviations.} 7. cxd5 {[%emt 0:00:00]} exd5 {[%emt 0:00:00]} 8. Ne5 {[%emt 0:00:00]} Bb7 {[%emt 0:00:00]} 9. Qb3 {[%emt 0:00:00]} c6 {[%emt 0:00:26]} 10. O-O {[%emt 0:01:16]} Nbd7 {[%emt 0:01:24]} 11. e4 {[%emt 0:11:30]} dxe4 {[%emt 0:08:53]} (11... Nxe5 {is interesting.} 12. dxe5 Nxe4 13. Nxe4 dxe4 14. Bxe4 Qc8) 12. Nxe4 {[%emt 0:00:06]} (12. Rd1 {feels hotter.} Qc7 13. Bf4 Bd6 14. Nxd7 Qxd7 15. Bxd6 Qxd6 16. Nxe4 Nxe4 17. Bxe4 Rfe8 18. Qc2) 12... Nxe5 {[%emt 0:25:28]} 13. dxe5 {[%emt 0:00:12]} Nxe4 {[%emt 0:00:05]} 14. Bxe4 {[%emt 0:00:07]} Qd4 {[%emt 0:00:07][%csl LRe4,LRe5]} 15. Qc2 {[%emt 0:05:51][%csl LRc6,LRh7]} Qxe5 {[%emt 0:02:48]} 16. Bxh7+ {[%emt 0:07:54]} Kh8 {[%emt 0:00:21] [#] ...g6 is the strong threat.} 17. Be4 $146 {[%emt 0:02:16]} ({Predecessor:} 17. Bf4 Qc5 18. Qxc5 Bxc5 19. Be4 Bd4 20. Rab1 Rfe8 21. Bf3 Re7 22. Rfd1 c5 23. Bxb7 Rxb7 {½-½ (47) Crespo Villalba,I (1921)-Benitez Cadenas,L (1698) Madrid 2013}) 17... Bf6 {[%emt 0:02:37]} 18. Rb1 {[%emt 0:06:19]} ({But not} 18. Bxc6 $2 Rac8 19. Bf4 Qe6 $19) 18... Rfe8 {[%emt 0:13:09]} 19. f3 {[%emt 0:00:10]} Qd4+ {[%emt 0:04:27]} 20. Kg2 {[%emt 0:07:58]} Qd7 {[%emt 0:11:35]} 21. b4 {[%emt 0:21:22] Against c5} c5 {[%emt 0:07:04][%cal Oe8e4] aiming for ...Rxe4!} 22. Bxb7 {[%emt 0:04:36]} Qxb7 {[%emt 0:00:05]} 23. Bb2 {[%emt 0:03:56]} Qa6 {[%emt 0:04:33]} 24. Rf2 {[%emt 0:00:39] Prevents Re2.} Bxb2 {[%emt 0:00:27]} 25. Rxb2 {[%emt 0:00:48]} Re5 {[%emt 0:04:31]} 26. bxc5 {[%emt 0:01:17]} Rxc5 {[%emt 0:03:47]} 27. Qe4 {[%emt 0:00:04]} Rac8 {[%emt 0:00:45]} 28. Rbd2 {[%emt 0:00:17]} Qc4 {[%emt 0:01:48]} 29. Rd4 {[%emt 0:02:37]} (29. Rd7 $1 $14) 29... Qc1 $11 {[%emt 0:04:00] The position is equal.} 30. Rfd2 {[%emt 0:08:10] White threatens Rd8+ and mate.} g6 $1 {[%emt 0:00:43]} (30... Rc2 $2 {[#]} 31. Rd8+ $3 {[%mdl 512]} Rxd8 32. Qh4+ Kg8 33. Qxd8+ Kh7 34. Qd3+ g6 35. Rxc2 $18) 31. Qe2 {[%emt 0:13:35]} Kg7 {[%emt 0:02:34]} 32. h4 {[%emt 0:01:10]} Rc2 {[%emt 0:01:16]} 33. h5 {[%emt 0:00:51]} Rxd2 {[%emt 0:00:38]} 34. Rxd2 {[%emt 0:00:04][%mdl 4096] Endgame [#] KQR-KQR} Re8 $1 {[%emt 0:01:15]} 35. Qf2 {[%emt 0:00:04]} Qe1 {[%emt 0:00:29]} 36. Qd4+ {[%emt 0:01:52]} Qe5 {[%emt 0:00:40]} 37. hxg6 {[%emt 0:01:58]} Qxd4 {[%emt 0:00:42]} 38. Rxd4 {[%emt 0:00:03] Black must now prevent gxf7.} Kxg6 {[%emt 0:01:12] KR-KR} 39. a4 {[%emt 0:00:51]} Re2+ {[%emt 0:01:14]} 40. Kh3 {[%emt 0:00:07]} Ra2 {[%emt 0:00:09]} 41. Kg4 {[%emt 0:31:03]} Kf6 {[%emt 0:30:52]} 42. Rf4+ {[%emt 0:00:23]} Kg6 {[%emt 0:00:12]} 43. Rc4 {[%emt 0:00:06]} Rd2 {[%emt 0:00:00]} 44. f4 {[%emt 0:00:00]} Rd5 {[%emt 0:00:00]} 45. Rb4 {[%emt 0:00:00]} Rc5 {[%emt 0:00:00]} 46. Rd4 {[%emt 0:00:00]} f6 {[%emt 0:00:00]} 47. Rb4 {[%emt 0:00:00]} Rd5 {[%emt 0:00:00]} 48. Rc4 {[%emt 0:00:00]} b5 {[%emt 0:00:00]} 49. axb5 {[%emt 0:00:00]} Rxb5 {[%emt 0:00:00]} 50. Rc6 {[%emt 0:00:00]} Ra5 {[%emt 0:00:00]} 51. Rc7 {[%emt 0:00:00]} a6 {[%emt 0:00:00]} 52. Rc6 {[%emt 0:00:00]} Ra4 {[%emt 0:00:00]} 53. Rb6 {[%emt 0:00:00]} Ra5 {[%emt 0:00:00]} 54. Rd6 {[%emt 0:00:00]} Ra4 {[%emt 0:00:00]} 55. Rd5 {[%emt 0:00:00]} Ra1 {[%emt 0:00:00]} 56. Rc5 {[%emt 0:00:00]} Ra4 {[%emt 0:00:00]} 57. Kh4 {[%emt 0:00:00]} Kh6 {[%emt 0:00:00]} 58. Rc6 {[%emt 0:00:00]} Kg6 {[%emt 0:00:00]} 59. Rb6 {[%emt 0:00:00]} Ra1 {[%emt 0:00:00]} 60. g4 {[%emt 0:00:00] Threatens to win with g5.} Kg7 {[%emt 0:00:08]} 61. f5 {[%emt 0:00:00]} Rh1+ {[%emt 0:01:06]} 62. Kg3 {[%emt 0:00:00]} a5 {[%emt 0:00:51]} 63. Rb7+ {[%emt 0:00:00]} Kg8 {[%emt 0:00:10]} 64. Ra7 {[%emt 0:00:00]} Ra1 {[%emt 0:00:52]} 65. Ra8+ {[%emt 0:00:00]} Kg7 {[%emt 0:00:16]} 66. Ra7+ {[%emt 0:00:00]} Kg8 {[%emt 0:00:04]} 67. Ra8+ {[%emt 0:00:00]} Kg7 {[%emt 0:00:05]} 68. Ra7+ {[%emt 0:00:00] Weighted Error Value: White=0.03 (flawless) /Black=0.02 (flawless)} 1/2-1/2

[Event "German Bundesliga 2021-22"]
[Site "Germany"]
[Date "2022.04.10"]
[Round "4.5"]
[White "Berchtenbreiter, Maximilian"]
[Black "Fedorchuk, Sergey A."]
[Result "0-1"]
[ECO "B22"]
[WhiteElo "2506"]
[BlackElo "2605"]
[Annotator "TA"]
[PlyCount "110"]
[EventDate "2022.03.05"]
[EventType "team-tourn"]
[EventCountry "GER"]
[SourceTitle "playchess.com"]
[Source "ChessBase"]
[SourceQuality "1"]
[TimeControl "40/5400+30:1800+30"]

{[%evp 17,110,0,0,0,0,0,7,25,1,11,27,28,20,12,51,45,50,39,77,-8,-28,-13,-10,-40,0,-5,0,0,0,0,-6,-8,-9,-18,0,0,0,-17,-18,-93,-101,-120,-126,-125,-133,-112,-115,-182,-191,-191,-162,-162,-162,-162,-162,-183,-190,-185,-189,-207,-212,-297,-190,-509,-487,-588,-562,-601,-664,-853,-859,-1234,-1183,-29970,-29971,-29971,-29972,-29972,-29971,-29972,-29973,-29977,-29978,-29978,-29979,-29980,-29981,-29982,-29983,-29983,-29984,-29985,-29986,-29986,-29981]} 1. e4 {[%emt 0:00:00]} c5 {[%emt 0:00:00]} 2. Nf3 {[%emt 0:00:00]} Nc6 {[%emt 0:00:00]} 3. c3 {[%emt 0:00:00]} d5 {[%emt 0:00:00]} 4. exd5 {[%emt 0:00:00]} Qxd5 {[%emt 0:00:00]} 5. d4 {[%emt 0:00:00]} e6 {[%emt 0:00:00]} 6. Na3 {[%emt 0:00:00]} Nf6 {[%emt 0:00:00]} 7. Nb5 {[%emt 0:00:00]} Qd8 {[%emt 0:02:41]} 8. dxc5 {[%emt 0:00:00]} Bxc5 {[%emt 0:02:06]} 9. Qxd8+ {[%emt 0:00:00]} Kxd8 {[%emt 0:00:10]} 10. b4 {[%emt 0:00:00] B22: Sicilian: 2 c3.} Be7 {[%emt 0:20:49] [#]} 11. a4 $146 {[%emt 0:00:00]} ({Predecessor:} 11. Bg5 Bd7 12. O-O-O Rc8 13. Kb2 a6 14. Nd6 Bxd6 15. Rxd6 Ke7 16. Rd1 Rhd8 17. Bd3 h6 {½-½ (65) Oberoi,S (2199)-Griffith,K (2372) Charlotte 2021}) 11... Bd7 {[%emt 0:05:34]} 12. Be2 {[%emt 0:00:00] The position is equal.} a6 {[%emt 0:13:19]} 13. Na3 {[%emt 0:00:00]} Nd5 {[%emt 0:00:10]} 14. Bd2 {[%emt 0:00:00]} f6 {[%emt 0:07:20]} 15. O-O {[%emt 0:00:00]} g5 {[%emt 0:01:14]} 16. Nc4 {[%emt 0:24:25]} Kc7 {[%emt 0:04:15]} 17. b5 {[%emt 0:20:07]} Nd8 {[%emt 0:12:52] [#]} 18. Rab1 {[%emt 0:21:08]} ({White should try} 18. bxa6 $1 $16 bxa6 19. Nd4) 18... axb5 $11 {[%emt 0:09:08]} 19. axb5 {[%emt 0:00:03]} e5 {[%emt 0:03:25]} 20. Rfd1 {[%emt 0:11:39]} Be6 {[%emt 0:04:03][%cal Bd7e6,Be6f5,Bf5d3][%mdl 32]} 21. Ne3 {[%emt 0:03:54]} Nxe3 {[%emt 0:06:42]} 22. Bxe3 {[%emt 0:01:18]} b6 {[%emt 0:00:39]} 23. Nd2 {[%emt 0:01:56]} Nb7 {[%emt 0:00:05]} 24. Bc4 {[%emt 0:01:49]} Bf5 {[%emt 0:00:46]} 25. Ra1 {[%emt 0:00:16]} Rxa1 {[%emt 0:03:52]} (25... Rhd8 {is more complex.} 26. Ra6 Nc5 27. Raa1 Bc2) 26. Rxa1 {[%emt 0:00:02]} Rd8 {[%emt 0:00:02] Against Bd5} 27. Kf1 {[%emt 0:04:49]} Bc5 {[%emt 0:01:39]} 28. Ke2 {[%emt 0:03:16]} (28. Bxc5 $11 {keeps the balance.} Nxc5 29. Ke2) 28... Na5 $17 {[%emt 0:00:17] Black continues to play with concentration.} 29. Bf7 {[%emt 0:09:17]} Bd3+ {[%emt 0:01:35]} 30. Ke1 {[%emt 0:00:21] Black must now prevent Bxc5.} Bxe3 {[%emt 0:00:21] &Nero is more active.} 31. fxe3 {[%emt 0:00:03]} Bxb5 {[%emt 0:00:14]} 32. e4 {[%emt 0:00:45] [#]} (32. c4 $17 {was called for.} Bc6 33. Bd5) 32... Rd3 $1 $19 {[%emt 0:00:49] Strongly threatening ...Re3+.} 33. c4 {[%emt 0:00:31]} Bc6 {[%emt 0:01:17][%cal Od3d2] Hoping for ...Rxd2!} 34. c5 {[%emt 0:00:03] [#]} Bxe4 $1 {[%emt 0:01:28][%mdl 512]} 35. Nxe4 {[%emt 0:00:30]} Re3+ {[%emt 0:00:06]} 36. Kf2 {[%emt 0:00:44]} Rxe4 {[%emt 0:00:04][%mdl 4096] Endgame KRB-KRN} 37. g3 {[%emt 0:00:22]} Nc6 {[%emt 0:01:07]} 38. Bd5 {[%emt 0:01:17]} Rb4 {[%emt 0:00:12]} 39. Ra6 {[%emt 0:00:49]} (39. cxb6+ {was worth a try.} Rxb6 40. g4) 39... Rb5 {[%emt 0:00:47]} 40. Bxc6 $2 {[%emt 0:00:33]} (40. cxb6+ {is more resistant.} Rxb6 41. Rxb6 Kxb6 42. g4) 40... Kxc6 {[%emt 0:00:04]} 41. cxb6 {[%emt 0:30:05]} Rxb6 {[%emt 0:30:10] KR-KR} 42. Ra7 {[%emt 0:00:03]} h5 {[%emt 0:01:27]} 43. Rh7 {[%emt 0:00:20]} Kd5 {[%emt 0:00:00]} 44. Rxh5 {[%emt 0:00:00]} Ke4 {[%emt 0:00:00] And now ...Rb2+ would win.} 45. h4 {[%emt 0:00:00]} Rb2+ {[%emt 0:00:00] Black mates.} 46. Ke1 {[%emt 0:00:00]} Ke3 {[%emt 0:00:00][%cal Rb2b1]} 47. Kd1 {[%emt 0:00:00]} Rd2+ {[%emt 0:00:00]} 48. Kc1 {[%emt 0:00:00]} Rh2 {[%emt 0:00:00]} 49. Rh6 {[%emt 0:00:00]} gxh4 {[%emt 0:00:00]} 50. gxh4 {[%emt 0:00:00]} f5 {[%emt 0:00:00][%cal Bf6f5,Bf5f4,Bf4f3][%mdl 32]} 51. Rh5 {[%emt 0:00:00]} Ke4 {[%emt 0:00:00]} 52. Kd1 {[%emt 0:00:00]} f4 {[%emt 0:00:00]} 53. Ke1 {[%emt 0:00:00]} f3 {[%emt 0:00:00]} 54. Kf1 {[%emt 0:00:00]} Kf4 {[%emt 0:00:00]} 55. Rh8 {[%emt 0:00:00]} Ke3 {[%emt 0:00:00] Weighted Error Value: White=0.42/Black=0.06 (flawless)} 0-1

[Event "German Bundesliga 2021-22"]
[Site "Germany"]
[Date "2022.04.10"]
[Round "4.5"]
[White "Stankovic, Milos"]
[Black "Novikov, Igor"]
[Result "1/2-1/2"]
[ECO "B23"]
[WhiteElo "2412"]
[BlackElo "2551"]
[Annotator "TA"]
[PlyCount "51"]
[EventDate "2022.03.05"]
[EventType "team-tourn"]
[EventCountry "GER"]
[SourceTitle "playchess.com"]
[Source "ChessBase"]
[SourceQuality "1"]
[TimeControl "40/5400+30:1800+30"]

{[%evp 9,51,4,19,14,11,0,6,0,7,17,0,3,1,0,27,0,0,-14,7,11,17,14,39,40,48,30,37,13,9,-891,42,0,17,0,45,43,20,0,18,0,4,0,0,0]} 1. e4 {[%emt 0:00:00]} c5 {[%emt 0:00:00]} 2. Nc3 {[%emt 0:00:00]} d6 {[%emt 0:00:00]} 3. Bb5+ {[%emt 0:00:00]} Bd7 {[%emt 0:00:00]} 4. Bxd7+ {[%emt 0:00:00]} Qxd7 {[%emt 0:00:00]} 5. d4 {[%emt 0:00:00]} cxd4 $1 {[%emt 0:00:00]} 6. Qxd4 {[%emt 0:00:00] B23: Closed Sicilian: Lines without g3.} Nc6 {[%emt 0:00:00]} 7. Qd3 {[%emt 0:00:00]} g6 {[%emt 0:00:00]} 8. Nf3 {[%emt 0:00:00]} Bg7 {[%emt 0:00:00]} 9. O-O {[%emt 0:00:00]} Nf6 {[%emt 0:00:00][%cal Bg8f6,Bf6h5,Bh5f4][%mdl 32]} 10. Nd5 {[%emt 0:00:00]} O-O {[%emt 0:07:22]} 11. Bg5 {[%emt 0:00:57]} Nh5 12. c3 {[%emt 0:00:30] [#]} e6 $146 {[%emt 0:39:42]} ({Predecessor:} 12... h6 13. Be3 Kh7 14. Rfd1 Rac8 15. h3 Nf6 16. a4 Qe6 17. a5 Rfd8 18. Ra4 Nd7 {0-1 (61) Jones,G (2657)-Grischuk,A (2773) Chess.com INT 2021}) 13. Ne3 {[%emt 0:00:30]} f6 {[%emt 0:04:30]} (13... h6 $5 {[%cal Rh6g5]} 14. Bh4 f5 $11) 14. Bh4 {[%emt 0:15:55]} Rfd8 {[%emt 0:01:35]} 15. Rad1 {[%emt 0:05:42]} Qe7 {[%emt 0:00:20]} 16. Nd4 Nf4 {[%emt 0:00:30] [#]} 17. Nxc6 $1 bxc6 {[%emt 0:00:30]} 18. Qc4 Rac8 {[%emt 0:00:30]} 19. Qd3 $2 {[%emt 0:07:43][%mdl 8192]} Ra8 $2 {[%emt 0:05:47]} (19... Nxd3 $19 20. Rxd3 g5) 20. Qc4 {[%emt 0:13:32]} Rac8 {[%emt 0:00:47]} 21. Bg3 {[%emt 0:05:03]} d5 {[%emt 0:03:03]} 22. exd5 {[%emt 0:02:57]} Nxd5 {[%emt 0:00:05]} 23. Nc2 {[%emt 0:03:26] The position is equal.} Qf7 {[%emt 0:03:55]} 24. Rfe1 {[%emt 0:11:08]} Bf8 {[%emt 0:00:52]} 25. Qa6 {[%emt 0:04:48]} e5 {[%emt 0:02:47]} 26. a3 {[%emt 0:01:26] Weighted Error Value: White=0.51/Black=0.34} 1/2-1/2

[Event "German Bundesliga 2021-22"]
[Site "Germany"]
[Date "2022.04.10"]
[Round "4.5"]
[White "Mueller, Nick"]
[Black "Svane, Frederik"]
[Result "0-1"]
[ECO "E32"]
[WhiteElo "2375"]
[BlackElo "2496"]
[Annotator "TA"]
[PlyCount "80"]
[EventDate "2022.03.05"]
[EventType "team-tourn"]
[EventCountry "GER"]
[SourceTitle "playchess.com"]
[Source "ChessBase"]
[SourceQuality "1"]
[TimeControl "40/5400+30:1800+30"]

{[%evp 14,80,10,19,33,0,0,0,0,0,0,0,0,0,0,-10,8,8,8,0,0,-11,-20,-26,-18,-52,-30,-24,-27,-104,-8,-8,-5,-4,-8,-10,-6,-56,-62,-68,-36,-38,-36,-81,-33,-44,-36,-28,-25,-59,-66,-54,-64,-58,-62,-52,-46,-43,-54,-149,-37,-64,-17,-29993,-29994,-29997,-29998,-29998,-29999]} 1. d4 {[%emt 0:00:00]} Nf6 {[%emt 0:00:00]} 2. c4 {[%emt 0:00:00]} e6 {[%emt 0:00:00]} 3. Nc3 {[%emt 0:00:00]} Bb4 {[%emt 0:00:00]} 4. Qc2 {[%emt 0:00:00]} O-O {[%emt 0:00:00]} 5. Nf3 {[%emt 0:00:00]} c5 {[%emt 0:00:00]} 6. dxc5 {[%emt 0:00:00]} Na6 {[%emt 0:00:00]} 7. g3 {[%emt 0:00:00]} Nxc5 {[%emt 0:00:00]} 8. Bg2 {[%emt 0:00:00]} Nfe4 {[%emt 0:00:00] E39: Nimzo-Indian: Classical: 4...c5 5 dxc5 0-0.} 9. O-O {[%emt 0:01:21]} (9. Bd2 $5 {[%cal Rc3e4]} Bxc3 10. Bxc3 $11) 9... Bxc3 {[%emt 0:00:00]} 10. bxc3 {[%emt 0:00:08]} b6 $1 {[%emt 0:00:00][%mdl 4] The position is equal. is now more promising than 10...d6.} 11. Ng5 {[%emt 0:06:06]} d5 {[%emt 0:00:00]} 12. Nxe4 {[%emt 0:03:49]} dxe4 {[%emt 0:00:00] [#]} 13. Be3 $146 {[%emt 0:04:32]} ({Predecessor:} 13. Bxe4 Nxe4 14. Qxe4 Ba6 15. Ba3 Re8 16. c5 Qd2 17. Rfe1 Qxc3 18. Bb4 Qc4 19. Qxc4 Bxc4 20. cxb6 axb6 {½-½ (34) Yu,Y (2738)-Rapport,R (2735) Danzhou 2019}) 13... f5 {[%emt 0:00:00]} 14. f3 {[%emt 0:04:36][%cal Rf3e4]} exf3 {[%emt 0:03:08]} 15. Bxf3 {[%emt 0:07:55]} Rb8 {[%emt 0:00:48]} 16. Bxc5 {[%emt 0:07:57]} bxc5 {[%emt 0:00:08]} 17. Qa4 {[%emt 0:05:31]} Qc7 {[%emt 0:15:06]} 18. Rad1 {[%emt 0:07:25]} Rb2 {[%emt 0:06:49]} 19. Rd3 {[%emt 0:10:33]} e5 {[%emt 0:11:49] aiming for ...e4.} 20. Qa3 {[%emt 0:00:56]} Qb6 {[%emt 0:27:59] Threatens to win with ...e4.} 21. Rfd1 {[%emt 0:04:38]} (21. Rd6 $11 Qxd6 22. Bd5+ Kh8 23. Qxb2) 21... Rb1 {[%emt 0:03:59]} (21... e4 $17 22. Rd6 Rb1 $1) 22. Bd5+ $11 {[%emt 0:01:58]} Kh8 {[%emt 0:00:04] ...e4 is the strong threat.} 23. Rxb1 {[%emt 0:07:23]} Qxb1+ {[%emt 0:00:02]} 24. Kg2 {[%emt 0:00:10]} Qb6 {[%emt 0:02:07]} 25. Rf3 {[%emt 0:03:50]} ({White should play} 25. Qb3 $11) 25... f4 $15 {[%emt 0:01:18]} 26. Rf2 {[%emt 0:06:02][%cal Oe2e3]} g5 {[%emt 0:05:25]} (26... Bf5 $5 {[%cal Rf4g3]} 27. Kg1 Rb8 $17) 27. e3 {[%emt 0:01:13]} Bg4 {[%emt 0:04:02][%cal Of4f3] ( -> ...f3+!)} 28. Qc1 {[%emt 0:04:37][%cal Re3f4]} Qf6 {[%emt 0:03:57] &Nero is more active.} ({Black should try} 28... e4 $17 {And now ...Bf3+ would win.} 29. Kg1 Bf3) 29. h3 {[%emt 0:02:53]} Bc8 {[%emt 0:00:36]} 30. exf4 {[%emt 0:03:43]} gxf4 {[%emt 0:00:04] Black wants to play ...Qh6.} 31. gxf4 {[%emt 0:00:15]} exf4 {[%emt 0:00:31]} 32. Rf3 {[%emt 0:00:26]} Bf5 {[%emt 0:04:23]} 33. Kh2 {[%emt 0:00:56]} Bg6 $36 {[%emt 0:00:13][%mdl 2048] Black has the initiative.} 34. Qg1 {[%emt 0:02:59]} Bh5 {[%emt 0:00:53]} 35. Rf2 {[%emt 0:00:18]} Qe5 {[%emt 0:02:05]} ({Don't do} 35... Qxc3 36. Rg2 Bg6 37. Qxc5 $14) 36. h4 {[%emt 0:01:47] [#]} (36. Rb2 $15) 36... Bg6 {[%emt 0:04:54]} ({Don't play} 36... Qxc3 $6 37. Qg5 (37. Rg2 Bg6 $11) 37... Bg6 38. Rxf4 Qd2+ 39. Kg3 Qe1+ 40. Kh2 Qd2+ 41. Kg3 Qe3+ 42. Bf3 Qe1+ 43. Kh3 Qf1+ 44. Kh2 Qf2+ 45. Kh3 Qf1+ 46. Kh2 Qf2+ 47. Kh3 Qf1+ $11) (36... h6 $1 $17 37. Rf1 f3+ 38. Kh1 Qe2) 37. Rf3 {[%emt 0:00:43]} Rb8 {[%emt 0:01:06]} (37... Qe7 $15 {deserves consideration.} 38. Qg5 Qd6) 38. Qxc5 $2 {[%emt 0:02:19][%mdl 8192]} (38. Rf2 $11) 38... Rb2+ {[%emt 0:01:02] Black mates.} 39. Kg1 {[%emt 0:00:07]} Qe1+ {[%emt 0:00:06]} 40. Rf1 {[%emt 0:00:06]} Qg3+ {[%emt 0:00:03] Weighted Error Value: White=0.38/Black=0.20 (precise)} 0-1

[Event "German Bundesliga 2021-22"]
[Site "Germany"]
[Date "2022.04.10"]
[Round "4.5"]
[White "Klein, Felix"]
[Black "Zilka, Stepan"]
[Result "1/2-1/2"]
[ECO "D45"]
[WhiteElo "2288"]
[BlackElo "2599"]
[Annotator "TA"]
[PlyCount "42"]
[EventDate "2022.03.05"]
[EventType "team-tourn"]
[EventCountry "GER"]
[SourceTitle "playchess.com"]
[Source "ChessBase"]
[SourceQuality "1"]
[TimeControl "40/5400+30:1800+30"]

{[%evp 17,42,16,11,16,12,8,22,36,29,18,20,13,27,20,18,7,29,10,36,16,28,6,50,37,50,52,62]} 1. d4 {[%emt 0:00:00]} d5 {[%emt 0:00:00]} 2. c4 {[%emt 0:00:00]} e6 {[%emt 0:00:00]} 3. Nf3 {[%emt 0:00:00]} Nf6 {[%emt 0:00:00]} 4. Nc3 {[%emt 0:00:00]} c6 {[%emt 0:00:00]} 5. e3 {[%emt 0:00:00]} Nbd7 {[%emt 0:00:00]} 6. Qc2 {[%emt 0:00:00]} Bd6 {[%emt 0:00:00]} 7. Bd3 {[%emt 0:00:22]} O-O {[%emt 0:00:00]} 8. O-O {[%emt 0:00:08]} h6 {[%emt 0:00:00]} 9. b3 {[%emt 0:00:22]} b6 {[%emt 0:00:00]} 10. Bb2 {[%emt 0:00:20] D46: Semi-Slav: 5 e3 Nbd7 6 Bd3, Black avoids the Meran.} Bb7 {[%emt 0:00:00]} 11. Rad1 {[%emt 0:00:04]} Qe7 {[%emt 0:05:17]} 12. e4 {[%emt 0:03:27] The position is equal.} dxe4 {[%emt 0:01:46]} 13. Nxe4 {[%emt 0:00:19]} Nxe4 {[%emt 0:09:43]} 14. Bxe4 {[%emt 0:00:53]} Nf6 {[%emt 0:02:02]} 15. Bd3 {[%emt 0:00:29]} Ba3 {[%emt 0:03:48] [#]} 16. Ba1 $146 {[%emt 0:16:01]} ({Predecessor:} 16. Rfe1 Bxb2 17. Qxb2 Rfd8 18. Qc3 Qa3 19. Ne5 c5 20. dxc5 Qxc5 21. Bc2 a5 22. Qg3 {½-½ (30) Kuuse,K (1990)-Van Tricht,M (2350) ICCF email 2016}) 16... Bb4 {[%emt 0:01:25]} 17. Qe2 {[%emt 0:11:20]} Rad8 {[%emt 0:02:27]} 18. Bb1 {[%emt 0:04:02]} Rfe8 {[%emt 0:00:55]} 19. Ne5 {[%emt 0:07:58]} c5 {[%emt 0:03:52]} 20. Nd3 $1 {[%emt 0:08:05]} Ba3 {[%emt 0:04:33]} 21. dxc5 {[%emt 0:02:19]} Bxc5 {[%emt 0:01:42] Weighted Error Value: White=0.03 (flawless) /Black=0.10 (very precise)} 1/2-1/2